bitfinex-derivatives/quotes_ETHF0:USTF0_20241024
["timestamp","ask_amount","ask_price","bid_price","bid_amount"]
[1729766211415,1.53549749,2530.4,2530.3,0.433]
[1729766212018,1.95839749,2530.4,2530.3,0.433]
[1729766218724,1.95839749,2530.4,2530.3,0.82858]
[1729766219930,0.81848,2530.4,2530.3,0.82858]
[1729766220324,3.2078,2530.6,2530.5,0.39555]
[1729766220629,1.53539749,2531.0,2530.6,0.98884]
[1729766220827,1.53539749,2531.0,2530.9,1.13991749]
[1729766221026,1.94489749,2531.0,2530.8,1.53540749]
[1729766221327,0.39549,2530.9,2530.8,1.53540749]
[1729766222227,0.39549,2530.9,2530.8,1.13991749]
[1729766222435,0.3955,2530.8,2530.7,0.4383]
[1729766222837,0.4361,2530.9,2530.5,1.47754]
[1729766223036,0.39553,2530.6,2530.5,1.47754]
[1729766223537,0.39553,2530.7,2530.5,1.47754]
[1729766224130,0.4361,2530.9,2530.4,1.2442]
[1729766224433,4.19656,2530.8,2530.4,1.2442]
[1729766224628,0.39555,2530.5,2530.4,1.63976]
[1729766225931,4.19656,2530.8,2530.4,1.2442]
[1729766226230,0.39554,2530.6,2530.5,0.39555]
[1729766227138,0.39554,2530.6,2530.4,1.2442]
[1729766227139,0.39553,2530.7,2530.6,0.39553]
[1729766227731,3.2078,2530.8,2530.7,0.39552]
[1729766230234,0.80498,2531.0,2530.9,0.39549]
[1729766231934,0.39548,2531.0,2530.9,0.39549]
[1729766233031,3.60327,2531.1,2531.0,0.39547]
[1729766233233,0.9885,2531.5,2530.8,3.52524517]
[1729766233533,0.9885,2531.5,2531.2,0.39543]
[1729766233534,3.60324,2531.3,2531.2,0.39543]
[1729766233739,3.2078,2531.3,2530.9,1.2828]
[1729766233939,0.39545,2531.2,2531.1,0.39545]
[1729766237227,0.39547,2531.0,2530.9,1.67829]
[1729766237424,0.39547,2531.0,2530.9,0.8505]
[1729766237827,0.39547,2531.0,2530.9,0.4177]
[1729766238033,7.159,2531.0,2530.6,0.4016]
[1729766238230,0.39552,2530.7,2530.6,0.8291]
[1729766238640,0.39552,2530.7,2530.6,1.22463]
[1729766239245,0.39552,2530.7,2530.6,0.8291]
[1729766241132,0.39552,2530.7,2530.6,1.22463]
[1729766242342,0.39552,2530.7,2530.6,2.36442163]
[1729766243536,0.39552,2530.7,2530.6,1.96889163]
[1729766246349,0.39552,2530.7,2530.6,2.36442163]
[1729766247445,0.39552,2530.7,2530.6,1.96889163]
[1729766247643,0.39552,2530.7,2530.6,2.36442163]
[1729766249545,1.13979163,2530.8,2530.7,0.39552]
[1729766249546,1.53530163,2530.8,2530.7,0.39552]
[1729766250740,0.39551,2530.8,2530.7,1.53531163]
[1729766252247,3.6033,2530.9,2530.8,0.3955]
[1729766252637,0.39553,2530.7,2530.6,1.13979163]
[1729766252836,4.34759163,2530.9,2530.7,0.39552]
[1729766252837,0.39552,2530.8,2530.7,0.39552]
[1729766253036,4.34759163,2530.9,2530.6,1.13979163]
[1729766253246,0.39552,2530.8,2530.6,1.53531163]
[1729766253943,0.39552,2530.7,2530.6,1.53531163]
[1729766256743,0.39552,2530.7,2530.6,1.13979163]
[1729766256950,0.39553,2530.6,2530.5,1.53889163]
[1729766257152,0.81073,2530.6,2530.5,1.53889163]
[1729766265353,5.09179163,2530.6,2530.3,1.53644412]
[1729766265554,4.74315163,2530.4,2530.3,1.53644412]
[1729766269156,3.60336,2530.4,2530.3,1.53644412]
[1729766269349,0.39558,2530.3,2530.2,1.53538163]
[1729766269551,0.39558,2530.3,2530.2,1.13979163]
[1729766270759,1.13979163,2530.3,2530.1,2.33774303]
[1729766270946,0.3956,2530.2,2530.1,2.33774303]
[1729766273152,0.3956,2530.2,2530.1,1.94214303]
[1729766274653,0.3956,2530.2,2530.1,2.33775303]
[1729766275056,0.3956,2530.2,2530.1,1.94214303]
[1729766275959,1.53539163,2530.2,2530.1,0.8023514]
[1729766280366,0.3956,2530.2,2530.1,0.8023514]
[1729766280962,0.3956,2530.2,2530.1,1.94214303]
[1729766282468,3.6034,2530.2,2530.1,0.8023514]
[1729766284554,0.3956,2530.2,2530.1,0.8023514]
[1729766286269,3.6034,2530.2,2530.1,0.8023514]
[1729766288668,0.3956,2530.2,2530.1,0.8023514]
[1729766293572,1.53539163,2530.2,2530.1,0.8023514]
[1729766295169,0.3956,2530.2,2530.1,0.8023514]
[1729766295374,3.2078,2530.6,2530.1,9.10194303]
[1729766295677,3.60335,2530.6,2530.5,1.13979163]
[1729766296175,0.39555,2530.5,2530.4,1.13979163]
[1729766296490,0.39555,2530.5,2530.1,5.54659552]
[1729766296491,0.3956,2530.2,2530.1,0.8023514]
[1729766296678,0.3956,2530.2,2530.1,2.34984303]
[1729766296871,1.53539163,2530.2,2530.1,1.2100514]
[1729766297174,1.53539163,2530.2,2530.1,2.34984303]
[1729766297175,0.3956,2530.2,2530.1,2.34984303]
[1729766297978,0.3956,2530.2,2530.1,2.74545303]
[1729766299178,0.3956,2530.2,2530.1,2.34984303]
[1729766300077,0.3956,2530.2,2530.1,2.74545303]
[1729766300278,0.3956,2530.2,2530.1,2.34984303]
[1729766300473,0.3956,2530.2,2530.1,1.97339163]
[1729766300984,0.3956,2530.2,2530.1,2.36900163]
[1729766303186,0.3956,2530.2,2530.1,1.97339163]
[1729766303975,0.3956,2530.2,2530.1,1.56569163]
[1729766304190,6.08080163,2530.2,2529.9,1.02565646]
[1729766304402,0.39564,2529.9,2529.8,2.99684809]
[1729766304587,0.39564,2529.9,2529.8,1.97119163]
[1729766304985,0.39564,2529.9,2529.8,1.55349163]
[1729766305291,1.53543163,2529.9,2529.8,0.4137]
[1729766306787,1.53543163,2529.9,2529.8,1.55349163]
[1729766306986,1.96253163,2529.9,2529.8,1.55349163]
[1729766307680,5.51969163,2529.9,2529.6,0.4177]
[1729766307885,0.39569,2529.6,2529.5,0.37320771]
[1729766308083,0.39569,2529.6,2529.5,1.13979163]
[1729766308283,0.83409,2529.6,2529.5,1.13979163]
[1729766309588,8.73959163,2529.6,2529.4,1.13979163]
[1729766309787,0.39571,2529.5,2529.4,1.13979163]
[1729766311684,3.60351,2529.5,2529.4,1.13979163]
[1729766311881,3.2078,2529.5,2529.4,1.13979163]
[1729766312088,1.13979163,2530.0,2529.4,5.09339163]
[1729766312298,0.39563,2530.0,2529.9,1.13979163]
[1729766312482,3.2078,2530.1,2530.0,0.39563]
[1729766312483,3.60342,2530.1,2530.0,0.39563]
[1729766312687,3.60342,2530.1,2530.0,1.53542163]
[1729766312985,3.2078,2530.1,2530.0,1.53542163]
[1729766313184,3.2078,2530.7,2530.0,5.09259163]
[1729766313383,3.60332,2530.7,2530.6,1.13979163]
[1729766313589,0.39555,2530.5,2530.4,1.13979163]
[1729766314895,0.39556,2530.4,2530.3,0.4097]
[1729766315083,0.79796,2530.4,2530.3,0.4097]
[1729766315287,1.93775163,2530.4,2530.3,0.4097]
[1729766315887,5.88975163,2530.4,2530.3,0.4097]
[1729766316295,4.74996,2530.4,2530.3,0.4097]
[1729766316688,4.74996,2530.4,2530.3,1.54949163]
[1729766319085,0.39556,2530.4,2530.3,1.54949163]
[1729766319493,0.39556,2530.4,2530.3,1.96989163]
[1729766323092,1.53535163,2530.4,2530.3,0.4097]
[1729766323292,5.48735163,2530.4,2530.3,0.4097]
[1729766325803,4.34756,2530.4,2530.3,0.4097]
[1729766326006,5.48735163,2530.4,2530.3,0.4097]
[1729766326209,5.48735163,2530.4,2530.1,1.56119163]
[1729766326210,5.09179163,2530.4,2530.1,1.56119163]
[1729766326502,5.09179163,2530.4,2530.1,1.99799163]
[1729766326503,1.53539163,2530.2,2530.1,1.99799163]
[1729766327406,0.3956,2530.2,2530.1,2.39360163]
[1729766328304,1.13979163,2530.5,2530.1,2.39360163]
[1729766328497,0.39555,2530.5,2530.4,1.13979163]
[1729766328904,4.34755,2530.5,2530.4,1.13979163]
[1729766330604,0.39555,2530.5,2530.4,1.13979163]
[1729766332807,0.39555,2530.5,2530.4,1.53535163]
[1729766333705,0.39555,2530.5,2530.4,1.13979163]
[1729766335710,0.39555,2530.5,2530.4,1.54259163]
[1729766341810,1.53534163,2530.5,2530.4,1.13979163]
[1729766342006,0.39555,2530.5,2530.4,1.13979163]
[1729766345011,1.13979163,2530.5,2530.3,1.13979163]
[1729766345211,0.39556,2530.4,2530.3,1.13979163]
[1729766346113,0.39556,2530.4,2530.3,1.53537163]
[1729766346618,0.39556,2530.4,2530.3,1.13979163]
[1729766349026,0.98885,2530.6,2530.2,0.80468]
[1729766349027,0.39558,2530.3,2530.2,0.4091]
[1729766349222,0.39558,2530.3,2530.2,1.54889163]
[1729766350815,0.39558,2530.3,2530.2,0.4091]
[1729766351016,0.39558,2530.3,2530.2,1.54889163]
[1729766352815,3.2078,2530.4,2530.1,1.99799163]
[1729766353021,0.8344,2530.2,2530.1,1.99799163]
[1729766353221,0.3956,2530.2,2530.1,1.99799163]
[1729766353821,0.3956,2530.2,2530.1,1.57659163]
[1729766354017,0.3956,2530.2,2530.1,2.01009163]
[1729766358921,0.3956,2530.2,2530.1,3.03574809]
[1729766360135,0.3956,2530.2,2530.1,1.46245646]
[1729766360433,4.3476,2530.2,2530.1,0.4368]
[1729766360618,12.60032504,2530.2,2529.9,1.57399163]
[1729766360818,12.60032504,2530.2,2529.9,1.99799163]
[1729766360819,0.39563,2530.0,2529.9,1.99799163]
[1729766364138,0.81963,2530.0,2529.9,1.99799163]
[1729766365631,0.81963,2530.0,2529.9,0.424]
[1729766365632,5.91222163,2530.0,2529.9,0.424]
[1729766366840,0.39564,2529.9,2529.8,1.13979163]
[1729766367253,4.34844,2529.9,2529.8,1.13979163]
[1729766367539,4.77974,2529.9,2529.8,1.13979163]
[1729766368033,5.52389163,2529.9,2529.7,0.8323]
[1729766368234,1.53545163,2529.8,2529.7,0.4015]
[1729766368442,5.48825163,2529.8,2529.7,0.4015]
[1729766368656,0.39567,2529.7,2529.5,0.8249]
[1729766368831,9.38879972,2529.8,2529.6,1.56679163]
[1729766368832,4.29620809,2529.8,2529.6,1.56679163]
[1729766369136,4.19681,2530.2,2529.7,2.27958326]
[1729766369343,4.19681,2530.2,2529.9,0.39563]
[1729766369344,0.39564,2530.0,2529.9,0.39563]
[1729766369843,0.39564,2530.0,2529.9,1.53542163]
[1729766370037,0.39564,2530.0,2529.9,1.96252163]
[1729766371430,0.39561,2530.2,2530.1,0.39561]
[1729766371634,3.2078,2530.5,2530.1,1.13979163]
[1729766371840,3.60335,2530.5,2530.4,1.13979163]
[1729766372431,0.39555,2530.5,2530.4,1.13979163]
[1729766372635,0.39555,2530.5,2530.4,1.57029163]
[1729766379754,0.39555,2530.5,2530.4,1.96585163]
[1729766380650,0.39555,2530.5,2530.4,1.57029163]
[1729766381842,0.39555,2530.5,2530.4,0.4305]
[1729766381843,1.53534163,2530.5,2530.4,0.4305]
[1729766382247,0.39558,2530.3,2530.2,0.4406]
[1729766382550,0.3956,2530.2,2530.1,1.13979163]
[1729766384153,0.39561,2530.1,2530.0,1.95339163]
[1729766384743,4.34841,2530.1,2530.0,1.95339163]
[1729766385760,4.34841,2530.1,2530.0,1.55489163]
[1729766386052,4.34841,2530.1,2529.5,4.23776342]
[1729766386053,0.39569,2529.6,2529.5,6.12658686]
[1729766386356,0.437,2530.0,2529.5,6.26381507]
[1729766386560,0.39568,2529.8,2529.7,0.39566]
[1729766387548,0.39568,2529.8,2529.7,1.53545163]
[1729766387948,0.39568,2529.8,2529.7,1.13979163]
[1729766388755,0.39568,2529.8,2529.7,1.53546163]
[1729766390155,0.39568,2529.8,2529.7,1.13979163]
[1729766395760,0.39567,2529.7,2529.6,0.8554]
[1729766396067,0.39567,2529.7,2529.6,1.99519163]
[1729766400665,0.39567,2529.7,2529.6,1.56319163]
[1729766401264,4.34847,2529.7,2529.6,1.56319163]
[1729766404361,0.39574,2529.3,2529.1,5.34576342]
[1729766404566,0.39574,2529.3,2529.2,1.97239163]
[1729766405965,0.39574,2529.3,2529.2,1.57329163]
[1729766406973,0.39574,2529.3,2529.2,1.13979163]
[1729766406974,8.77442642,2529.3,2529.2,1.13979163]
[1729766408769,9.91421805,2529.3,2529.2,1.13979163]
[1729766409464,9.51847805,2529.3,2529.2,1.13979163]
[1729766409669,9.91421805,2529.3,2529.2,1.13979163]
[1729766410877,0.39577,2529.1,2529.0,0.1]
[1729766411175,0.39577,2529.1,2529.0,1.23979163]
[1729766412173,3.2078,2529.4,2529.0,5.19419163]
[1729766412475,0.39571,2529.6,2529.5,0.39569]
[1729766412671,0.39571,2529.6,2529.5,1.53548163]
[1729766413071,0.39571,2529.6,2529.5,1.13979163]
[1729766414372,0.39571,2529.5,2529.4,4.44901]
[1729766415183,0.39571,2529.5,2529.4,4.0533]
[1729766415878,0.39571,2529.5,2529.4,0.8455]
[1729766416385,0.39571,2529.5,2529.4,1.24122]
[1729766416680,0.39569,2529.7,2529.6,0.39568]
[1729766416884,0.39571,2529.6,2529.5,0.3957]
[1729766418177,4.16801819,2529.9,2529.4,3.31617505]
[1729766418372,0.39571,2529.5,2529.4,1.24121]
[1729766418577,0.39571,2529.5,2529.4,0.8455]
[1729766419686,0.39571,2529.5,2529.4,1.24122]
[1729766419884,0.39571,2529.5,2529.4,0.8455]
[1729766420982,0.39571,2529.5,2529.4,1.24122]
[1729766421987,0.39571,2529.5,2529.4,0.8455]
[1729766423278,0.39571,2529.5,2529.4,1.66532]
[1729766424290,0.39571,2529.5,2529.4,4.4774]
[1729766426394,0.39571,2529.5,2529.4,1.2696]
[1729766426580,0.39571,2529.5,2529.4,4.4774]
[1729766428482,0.39571,2529.5,2529.4,1.2696]
[1729766428989,0.39571,2529.5,2529.4,4.4774]
[1729766429193,0.39571,2529.5,2529.4,1.2696]
[1729766429387,0.39571,2529.5,2529.4,4.4774]
[1729766430288,0.39571,2529.5,2529.4,0.406]
[1729766430991,0.79691,2529.5,2529.4,0.406]
[1729766431396,0.39574,2529.3,2529.2,0.3974]
[1729766433699,0.39575,2529.2,2529.1,0.4266]
[1729766436403,1.53635335,2529.2,2529.1,0.4266]
[1729766436900,0.39577,2529.1,2529.0,1.24060335]
[1729766437091,1.21867,2529.1,2529.0,1.24060335]
[1729766437291,5.17307,2529.1,2529.0,1.24060335]
[1729766437498,6.31367335,2529.1,2529.0,1.24060335]
[1729766437993,9.52147335,2529.1,2529.0,0.1]
[1729766438201,14.01584666,2529.1,2529.0,0.1]
[1729766440499,0.3958,2528.9,2528.8,1.57740335]
[1729766440801,1.53640335,2528.9,2528.8,1.57740335]
[1729766443990,5.49080335,2528.9,2528.8,0.4368]
[1729766444196,0.39582,2528.8,2528.7,1.14060335]
[1729766445402,1.14060335,2528.8,2528.6,2.36700335]
[1729766445698,0.82203,2528.7,2528.6,2.36700335]
[1729766446697,1.96263335,2528.7,2528.6,0.4085]
[1729766446902,10.35778245,2528.7,2528.6,0.4085]
[1729766447295,4.8365791,2528.7,2528.6,1.54910335]
[1729766447495,0.39582,2528.8,2528.7,0.39583]
[1729766447703,4.19724,2529.1,2528.7,1.57840335]
[1729766447903,3.2078,2529.1,2529.0,1.14060335]
[1729766448098,3.60357,2529.1,2529.0,1.14060335]
[1729766449207,0.98925,2529.6,2529.0,5.09500335]
[1729766449412,0.39569,2529.6,2529.5,1.53631335]
[1729766449712,0.39568,2529.7,2529.6,0.39568]
[1729766450006,0.39568,2529.7,2529.6,2.38938335]
[1729766450207,0.39568,2529.7,2529.6,1.99370335]
[1729766450396,40.8,2530.3,2529.6,10.48409827]
[1729766450596,0.3956,2530.2,2530.1,0.39561]
[1729766451100,0.98892,2530.5,2529.9,4.2558]
[1729766451101,0.39562,2530.1,2530.0,0.82302]
[1729766452101,0.39562,2530.1,2530.0,0.4274]
[1729766455999,3.2078,2530.3,2529.6,1.9611]
[1729766456206,0.39567,2529.7,2529.6,1.9611]
[1729766457406,0.39567,2529.7,2529.6,2.3992]
[1729766457603,0.39567,2529.7,2529.6,1.2912]
[1729766458708,0.39567,2529.8,2529.6,1.68689]
[1729766459306,3.2078,2530.0,2529.6,1.68689]
[1729766459506,0.39567,2529.7,2529.6,1.68689]
[1729766459706,0.39567,2529.8,2529.6,1.68689]
[1729766459908,0.39567,2529.7,2529.6,1.68689]
[1729766460104,4.6119,2530.3,2529.6,1.68689]
[1729766460409,0.39566,2529.9,2529.7,0.39567]
[1729766461013,0.39566,2529.8,2529.7,0.39567]
[1729766461312,4.34071459,2530.2,2529.6,4.15727827]
[1729766461517,0.39567,2529.7,2529.6,4.15727827]
[1729766461814,0.39566,2529.8,2529.7,0.39567]
[1729766462013,0.39566,2529.8,2529.7,3.60347]
[1729766462207,0.39566,2529.8,2529.7,4.34847]
[1729766463105,0.39566,2529.8,2529.7,0.39567]
[1729766463518,4.1968,2530.3,2529.6,3.76159827]
[1729766463714,0.39567,2529.8,2529.7,0.39567]
[1729766463908,0.39567,2529.7,2529.6,3.76159827]
[1729766464216,0.39567,2529.8,2529.6,1.2912]
[1729766464410,4.1968,2530.3,2529.7,3.2078]
[1729766464614,0.39565,2529.9,2529.7,3.2078]
[1729766464808,0.39566,2529.8,2529.7,3.60347]
[1729766465011,0.39566,2529.8,2529.7,0.39567]
[1729766465719,5.12290324,2530.2,2529.7,0.39567]
[1729766466015,0.39563,2530.0,2529.9,0.39564]
[1729766466308,0.39563,2530.0,2529.9,3.60344]
[1729766466713,4.13388324,2530.2,2529.8,0.39565]
[1729766466714,0.39564,2529.9,2529.8,0.39565]
[1729766466910,4.13388324,2530.2,2529.8,0.39565]
[1729766466911,0.39564,2530.0,2529.8,0.39565]
[1729766467710,0.39564,2530.0,2529.9,3.60344]
[1729766468812,0.39564,2530.0,2529.9,3.2078]
[1729766469212,4.13388324,2530.2,2529.6,4.14563335]
[1729766469513,0.98904,2530.1,2529.6,4.54131335]
[1729766469713,0.39567,2529.7,2529.6,4.54131335]
[1729766469915,0.39567,2529.7,2529.6,2.07091508]
[1729766470109,0.39567,2529.7,2529.6,6.02371508]
[1729766470310,0.39567,2529.7,2529.6,1.67523508]
[1729766470620,0.39567,2529.7,2529.6,1.2912]
[1729766470809,0.39567,2529.7,2529.6,5.244]
[1729766471211,0.39567,2529.7,2529.6,1.2912]
[1729766471716,0.39567,2529.7,2529.6,1.68689]
[1729766472612,0.39567,2529.8,2529.7,0.39567]
[1729766472816,0.39567,2529.7,2529.6,1.2912]
[1729766473227,0.39567,2529.7,2529.6,1.68689]
[1729766473418,0.39567,2529.7,2529.6,4.89469]
[1729766474118,0.39567,2529.7,2529.6,8.84749]
[1729766474312,0.39567,2529.7,2529.6,4.89469]
[1729766474513,0.39567,2529.7,2529.6,4.499]
[1729766474714,0.39567,2529.7,2529.6,8.84749]
[1729766474915,0.98904,2530.1,2529.6,8.4518]
[1729766475113,0.39564,2530.0,2529.9,0.39564]
[1729766475517,0.39564,2529.9,2529.8,0.39565]
[1729766475914,0.39566,2529.8,2529.7,2.86606827]
[1729766476420,0.39566,2529.8,2529.7,6.81886827]
[1729766476616,0.39565,2529.9,2529.8,0.39565]
[1729766477916,3.6322,2530.4,2529.8,3.9528]
[1729766478117,0.39562,2530.1,2530.0,2.47039827]
[1729766478420,0.39562,2530.1,2530.0,3.70382827]
[1729766478616,0.39562,2530.1,2530.0,4.10162827]
[1729766479223,0.39562,2530.1,2530.0,3.70599827]
[1729766480321,0.39562,2530.1,2530.0,1.2356]
[1729766480520,0.39563,2530.0,2529.9,3.2078]
[1729766481220,0.39563,2530.0,2529.9,3.60344]
[1729766481417,0.39563,2530.0,2529.9,3.2078]
[1729766483528,0.39564,2529.9,2529.8,1.16299123]
[1729766484011,0.39564,2529.9,2529.8,5.11579123]
[1729766485122,0.39564,2529.9,2529.8,4.72014123]
[1729766485720,0.39564,2529.9,2529.8,5.11580123]
[1729766485921,0.39564,2529.9,2529.8,4.351]
[1729766486425,0.39564,2529.9,2529.8,0.3982]
[1729766486621,0.848,2530.0,2529.7,3.2078]
[1729766486922,1.2486,2530.0,2529.6,2.0104]
[1729766487123,0.39567,2529.7,2529.6,2.0104]
[1729766487922,0.39567,2529.7,2529.6,0.8374]
[1729766488117,0.39567,2529.7,2529.6,0.4396]
[1729766488318,0.39567,2529.7,2529.6,1.57988015]
[1729766489021,0.39567,2529.7,2529.6,1.14028015]
[1729766490215,0.98912,2529.9,2529.4,3.30712792]
[1729766490420,0.39571,2529.5,2529.4,3.70284792]
[1729766490820,0.39571,2529.5,2529.4,7.65644792]
[1729766492231,0.39571,2529.5,2529.4,3.70284792]
[1729766493528,1.2486,2530.0,2529.7,0.39567]
[1729766493529,0.39567,2529.8,2529.7,0.39567]
[1729766493828,0.4137,2530.0,2529.7,2.47052792]
[1729766494021,0.39564,2529.9,2529.8,0.83375]
[1729766494221,0.39564,2529.9,2529.8,1.26685]
[1729766495431,0.39564,2529.9,2529.8,1.26686]
[1729766495824,0.4002,2530.4,2529.8,4.824]
[1729766496034,0.39563,2530.0,2529.9,2.86615792]
[1729766497432,0.39562,2530.1,2530.0,0.39562]
[1729766498023,0.39563,2530.0,2529.9,2.47052792]
[1729766498226,0.39563,2530.0,2529.9,2.86615792]
[1729766499642,0.39563,2530.0,2529.9,6.81895792]
[1729766500341,0.39563,2530.0,2529.9,2.86615792]
[1729766500532,0.39563,2530.0,2529.9,2.47052792]
[1729766501939,0.98901,2530.2,2529.7,4.23776342]
[1729766501940,0.98905,2530.1,2529.7,1.02996342]
[1729766502138,0.39567,2529.7,2529.6,1.02996342]
[1729766502438,2.26003,2529.9,2529.5,3.94149134]
[1729766502439,0.39569,2529.6,2529.5,3.94149134]
[1729766502633,0.39569,2529.6,2529.5,5.87522747]
[1729766502835,0.39569,2529.6,2529.5,3.94149134]
[1729766505040,0.39569,2529.6,2529.5,4.71018437]
[1729766505247,0.39569,2529.6,2529.5,3.68022095]
[1729766507943,0.39569,2529.6,2529.5,2.91152792]
[1729766508652,0.39571,2529.5,2529.4,0.4105]
[1729766508856,0.4037,2529.5,2529.3,6.70829134]
[1729766509045,0.39572,2529.4,2529.3,6.05443924]
[1729766509243,0.39575,2529.2,2529.1,1.02996342]
[1729766509544,0.39578,2529.0,2528.9,6.63740855]
[1729766509757,0.39578,2529.0,2528.9,4.35519134]
[1729766509957,0.39578,2529.0,2528.9,3.32522792]
[1729766510346,0.39578,2529.0,2528.9,2.39106075]
[1729766510544,0.39578,2529.0,2528.9,1.56076075]
[1729766512047,0.39578,2529.0,2528.9,1.14056075]
[1729766512355,0.4037,2529.1,2528.7,3.68077856]
[1729766512356,0.39582,2528.8,2528.7,3.68077856]
[1729766513145,0.39582,2528.8,2528.7,2.86862194]
[1729766514959,4.35022,2528.8,2528.7,2.47132194]
[1729766515150,0.39585,2528.6,2528.5,1.18763131]
[1729766515351,0.98951,2528.9,2528.4,0.3998]
[1729766515649,0.39586,2528.5,2528.4,0.3998]
[1729766515957,0.39589,2528.3,2528.2,2.47132194]
[1729766516259,0.39589,2528.3,2528.2,2.87112194]
[1729766517052,0.39589,2528.3,2528.2,0.3998]
[1729766518649,1.39894,2528.6,2528.1,2.47132194]
[1729766518850,0.39591,2528.2,2528.1,2.47132194]
[1729766519259,4.35111,2528.2,2528.1,2.47132194]
[1729766519452,4.35111,2528.2,2528.0,3.59405217]
[1729766519453,0.39592,2528.1,2528.0,3.2078]
[1729766519655,0.9897,2528.4,2527.9,0.433]
[1729766519850,0.39594,2528.0,2527.9,0.433]
[1729766520366,4.53939439,2528.3,2527.9,0.433]
[1729766520659,0.39592,2528.2,2528.0,2.47132194]
[1729766520850,0.4093,2528.6,2528.2,0.3959]
[1729766521046,0.39589,2528.4,2528.3,0.4103]
[1729766521258,0.39589,2528.4,2528.3,0.8309]
[1729766521953,0.39587,2528.5,2528.4,0.39587]
[1729766522155,0.39588,2528.4,2528.3,1.22678]
[1729766523051,0.39588,2528.4,2528.3,0.8309]
[1729766523255,0.39588,2528.4,2528.3,0.4206]
[1729766526963,0.39588,2528.4,2528.3,0.81649]
[1729766527361,0.39588,2528.4,2528.3,0.4206]
[1729766529157,0.8238,2528.6,2528.1,2.47132194]
[1729766529353,0.8238,2528.6,2527.9,2.86727194]
[1729766529354,0.39594,2528.0,2527.9,2.86727194]
[1729766529555,0.39593,2528.1,2528.0,0.39593]
[1729766529755,0.39593,2528.1,2528.0,0.82313]
[1729766529957,0.39593,2528.1,2528.0,0.4272]
[1729766530763,0.39593,2528.1,2528.0,0.8375]
[1729766531967,0.39593,2528.1,2528.0,0.4272]
[1729766533659,0.4295,2528.2,2527.9,0.4044]
[1729766533868,0.39594,2528.0,2527.9,0.4044]
[1729766534370,1.53706656,2528.0,2527.9,0.4044]
[1729766534563,5.09712656,2528.0,2527.8,1.14112656]
[1729766534869,0.39596,2527.9,2527.8,1.14112656]
[1729766536362,0.39599,2527.7,2527.6,1.66469]
[1729766536562,46.00404088,2528.0,2527.6,1.66469]
[1729766536769,0.39599,2527.7,2527.6,1.66469]
[1729766542370,0.39599,2527.7,2527.6,1.2687]
[1729766546971,0.39599,2527.8,2527.7,0.39599]
[1729766547570,0.39599,2527.7,2527.6,1.66469]
[1729766549060,0.39599,2527.7,2527.6,1.2687]
[1729766556175,0.39599,2527.7,2527.6,0.8425]
[1729766556374,0.39599,2527.7,2527.6,0.4044]
[1729766556876,5.30142178,2527.9,2527.4,3.2078]
[1729766556877,7.77385974,2527.9,2527.4,3.2078]
[1729766557077,0.39603,2527.4,2527.3,1.2476]
[1729766557474,0.39607,2527.2,2527.1,1.42604342]
[1729766557669,0.39607,2527.2,2527.1,2.01666788]
[1729766557870,0.39607,2527.2,2527.1,3.0466313]
[1729766558382,0.39607,2527.2,2527.1,4.18791881]
[1729766560879,4.1978,2527.7,2527.6,0.396]
[1729766560880,0.396,2527.7,2527.6,0.396]
[1729766561079,0.396,2527.7,2527.6,1.53728751]
[1729766561282,3.2078,2528.0,2527.6,5.09728751]
[1729766561582,3.2078,2528.0,2527.9,1.53724751]
[1729766561583,3.60375,2528.0,2527.9,1.53724751]
[1729766561783,3.60375,2528.0,2527.9,1.14128751]
[1729766562383,3.60375,2528.0,2527.9,0.39596]
[1729766562581,0.39596,2527.9,2527.8,0.39596]
[1729766564180,0.39597,2527.8,2527.7,1.63779]
[1729766564484,0.39597,2527.9,2527.8,0.39596]
[1729766564674,0.39596,2527.9,2527.8,0.39596]
[1729766565878,0.39596,2527.9,2527.8,0.39597]
[1729766569989,0.39597,2527.8,2527.7,1.63778]
[1729766570380,0.39597,2527.8,2527.7,1.2418]
[1729766571782,4.94594,2527.8,2527.4,1.0325296]
[1729766572092,1.38914,2527.8,2527.3,0.83034]
[1729766572283,0.39603,2527.4,2527.3,0.83034]
[1729766574279,0.39603,2527.4,2527.3,0.4343]
[1729766581490,0.4026,2527.8,2527.3,0.4343]
[1729766581695,0.98988,2528.0,2527.5,0.39602]
[1729766581890,0.39599,2527.7,2527.6,0.8414]
[1729766582307,0.39599,2527.7,2527.6,1.9826029]
[1729766582601,0.39599,2527.7,2527.6,2.3786029]
[1729766583606,2.5554229,2528.2,2527.6,10.2876058]
[1729766583903,0.39592,2528.1,2528.0,1.1412029]
[1729766585404,0.39592,2528.1,2528.0,1.5774029]
[1729766586505,0.39592,2528.1,2528.0,0.4362]
[1729766588804,0.39592,2528.1,2528.0,0.83214]
[1729766589105,0.39592,2528.1,2528.0,0.4362]
[1729766590795,0.4055,2528.3,2528.0,2.90825881]
[1729766590999,0.4055,2528.3,2528.2,0.39591]
[1729766591000,0.39591,2528.3,2528.2,0.39591]
[1729766591204,0.39591,2528.2,2528.1,0.79682]
[1729766591605,0.39591,2528.2,2528.1,0.4009]
[1729766592003,0.39591,2528.2,2528.1,0.79682]
[1729766597099,0.39591,2528.2,2528.1,0.4009]
[1729766598102,0.39591,2528.2,2528.1,0.78660283]
[1729766599407,0.39591,2528.2,2528.1,0.4009]
[1729766604510,0.39592,2528.1,2528.0,2.85172737]
[1729766605722,0.39592,2528.1,2528.0,3.24766737]
[1729766605908,0.4298,2528.5,2528.0,2.85172737]
[1729766606106,0.39592,2528.2,2528.1,0.39592]
[1729766606411,0.39592,2528.2,2528.1,1.53675694]
[1729766611511,0.39592,2528.2,2528.1,1.14083694]
[1729766611815,4.35111,2528.2,2528.1,1.14083694]
[1729766612209,0.39591,2528.2,2528.1,1.14083694]
[1729766614711,3.9552,2528.2,2528.1,1.14083694]
[1729766615014,0.39594,2528.0,2527.9,1.14083694]
[1729766615324,6.08582694,2528.2,2527.6,2.806]